fUSD/lending_fUSD_20250811
["ID","MTS","AMOUNT","RATE_DAILY","PERIOD"]
[378561941,1754913089616,-416.15007256,0.00017175,2]
[378561942,1754913089626,-400.0,0.00017175,2]
[378561943,1754913089635,-472.02,0.00017175,2]
[378561944,1754913089644,-400.0,0.00017175,2]
[378561945,1754913089654,-400.0,0.00017175,2]
[378561946,1754913089662,-613.38,0.00017175,2]
[378561947,1754913089671,-400.0,0.00017175,2]
[378561948,1754913089681,-519.76,0.00017175,2]
[378561949,1754913089690,-901.95,0.00017175,2]
[378561950,1754913089700,-647.41,0.00017175,2]
[378561951,1754913089709,-400.0,0.00017175,2]
[378561952,1754913089718,-249.372785,0.00017175,2]
[378561953,1754913089727,-400.0,0.00017175,2]
[378561954,1754913089737,-249.372785,0.00017175,2]
[378561955,1754913089746,-400.0,0.00017175,2]
[378561956,1754913089756,-400.0,0.00017175,2]
[378561957,1754913089765,-400.0,0.00017175,2]
[378561958,1754913089774,-400.0,0.00017175,2]
[378561959,1754913089784,-572.02,0.00017175,2]
[378561960,1754913089793,-631.5,0.00017175,2]
[378561961,1754913089803,-498.49,0.00017175,2]
[378561962,1754913089812,-400.0,0.00017175,2]
[378561963,1754913089821,-400.0,0.00017175,2]
[378561964,1754913089831,-483.81,0.00017175,2]
[378561965,1754913089844,-714.46,0.00017175,2]
[378561966,1754913089856,-667.36,0.00017175,2]
[378561967,1754913089868,-667.36,0.00017175,2]
[378561968,1754913089878,-400.0,0.00017175,2]
[378561969,1754913089887,-400.0,0.00017175,2]
[378561970,1754913089897,-598.53,0.00017175,2]
[378561971,1754913089907,-400.0,0.00017175,2]
[378561972,1754913089917,-433.36,0.00017175,2]
[378561973,1754913089926,-287.257386,0.00017175,2]
[378561974,1754913089935,-400.0,0.00017175,2]
[378561975,1754913089945,-287.257386,0.00017175,2]
[378561976,1754913089954,-775.91,0.00017175,2]
[378561977,1754913089963,-345.624,0.00017175,2]
[378561978,1754913089972,-400.0,0.00017175,2]
[378561979,1754913089981,-345.624,0.00017175,2]
[378561980,1754913089991,-279.810865,0.00017175,2]
[378561981,1754913090001,-279.810865,0.00017175,2]
[378561982,1754913090010,-277.024127,0.00017175,2]
[378561983,1754913090022,-277.024127,0.00017175,2]
[378561984,1754913090040,-151.0,0.00017175,2]
[378561985,1754913090050,-671.9,0.00017175,2]
[378561986,1754913090060,-671.9,0.00017175,2]
[378561987,1754913090069,-722.059711,0.00017175,2]
[378561988,1754913090079,-722.059711,0.00017175,2]
[378561989,1754913090089,-3179.72,0.00017175,2]
[378561990,1754913090099,-3179.72,0.00017175,2]
[378561991,1754913090112,-10000.0,0.00017175,2]
[378561992,1754913090122,-10000.0,0.00017175,2]
[378561993,1754913090132,-158.92337,0.00017175,2]
[378561994,1754913090142,-158.92337,0.00017175,2]
[378561995,1754913090151,-2677.925587,0.00017176,2]
[378561996,1754913090161,-2677.925587,0.00017176,2]
[378561997,1754913090171,-1278.286218,0.00017176,2]
[378561998,1754913090180,-1278.286222,0.00017176,2]
[378561999,1754913090191,-900.545503,0.00017176,2]
[378562000,1754913090200,-900.545503,0.00017176,2]
[378562001,1754913090210,-1182.126922,0.00017176,2]
[378562002,1754913090220,-900.545503,0.00017176,2]
[378562003,1754913090231,-900.545503,0.00017176,2]
[378562004,1754913090244,-1182.126932,0.00017176,2]
[378562005,1754913090254,-1183.01629,0.00017176,2]
[378562006,1754913090263,-1183.01629,0.00017176,2]
[378562007,1754913090273,-1183.01629,0.00017176,2]
[378562008,1754913090283,-1183.01629,0.00017176,2]
[378562009,1754913090293,-353.932149,0.00017176,2]
[378562010,1754913090303,-353.932149,0.00017176,2]
[378562011,1754913090313,-1037.771539,0.00017176,2]
[378562012,1754913090323,-1037.771539,0.00017176,2]
[378562013,1754913090333,-3528.785897,0.00017176,2]
[378562014,1754913090342,-3528.785897,0.00017176,2]
[378562015,1754913090351,-3528.785897,0.00017176,2]
[378562016,1754913090362,-817.090114,0.00017176,2]
[378562017,1754913090371,-817.090114,0.00017176,2]
[378562018,1754913090381,-817.090114,0.00017176,2]
[378562019,1754913090390,-817.090114,0.00017176,2]
[378562020,1754913090400,-1666.659554,0.00017176,2]
[378562021,1754913090410,-1666.659554,0.00017176,2]
[378562022,1754913090420,-1391.161039,0.00017176,2]
[378562023,1754913090429,-1391.161039,0.00017176,2]
[378562024,1754913090438,-946.509576,0.00017176,2]
[378562025,1754913090448,-946.509576,0.00017176,2]
[378562026,1754913090457,-2979.342315,0.00017176,2]
[378562027,1754913090467,-151.0,0.00017176,2]
[378562028,1754913090476,-1251.129203,0.00017176,2]
[378562029,1754913090485,-1251.129203,0.00017176,2]
[378562030,1754913090495,-1251.129203,0.00017176,2]
[378562031,1754913090504,-1251.129203,0.00017176,2]
[378562032,1754913090513,-586.841379,0.00017176,2]
[378562033,1754913090523,-586.841379,0.00017176,2]
[378562034,1754913090532,-586.841379,0.00017176,2]
[378562035,1754913090541,-586.841379,0.00017176,2]
[378562036,1754913090551,-1646.262048,0.00017176,2]
[378562037,1754913090560,-1646.262048,0.00017176,2]
[378562038,1754913090569,-1242.63,0.00017176,2]
[378562039,1754913090578,-1646.262048,0.00017176,2]
[378562040,1754913090587,-1646.262048,0.00017176,2]
[378562041,1754913090596,-10000.0,0.00017176,2]
[378562042,1754913090606,-10000.0,0.00017176,2]
[378562043,1754913090616,-10000.0,0.00017176,2]
[378562044,1754913090626,-10000.0,0.00017176,2]
[378562045,1754913090968,-10000.0,0.00017176,2]
[378562046,1754913090978,-10000.0,0.00017176,2]
[378562047,1754913090988,-151.0,0.00017176,2]
[378562048,1754913090998,-151.0,0.00017176,2]
[378562049,1754913091008,-2399.138981,0.00017176,2]
[378562050,1754913091018,-2399.138981,0.00017176,2]
[378562051,1754913091027,-379.164322,0.00017176,2]
[378562052,1754913091038,-379.164322,0.00017176,2]
[378562053,1754913091048,-379.164322,0.00017176,2]
[378562054,1754913091057,-379.164322,0.00017176,2]
[378562055,1754913091067,-691.460372,0.00017176,2]
[378562056,1754913091077,-691.460372,0.00017176,2]
[378562057,1754913091086,-338.838444,0.00017176,2]
[378562058,1754913091096,-338.838444,0.00017176,2]
[378562059,1754913091107,-914.903255,0.00017176,2]
[378562060,1754913091118,-914.903255,0.00017176,2]
[378562061,1754913091127,-914.903255,0.00017176,2]
[378562062,1754913091137,-914.903255,0.00017176,2]
[378562063,1754913091147,-1443.502461,0.00017176,2]
[378562064,1754913091156,-1443.502461,0.00017176,2]
[378562065,1754913091166,-172.245218,0.00017176,2]
[378562066,1754913091176,-172.245218,0.00017176,2]
[378562067,1754913091185,-7822.156241,0.00017176,2]
[378562068,1754913091195,-7822.156241,0.00017176,2]
[378562069,1754913091204,-7822.156241,0.00017176,2]
[378562070,1754913091214,-7822.156241,0.00017176,2]
[378562071,1754913091224,-162.582376,0.00017176,2]
[378562072,1754913091233,-151.0,0.00017176,2]
[378562073,1754913091246,-162.582376,0.00017176,2]
[378562074,1754913091255,-232.413138,0.00017176,2]
[378562075,1754913091265,-364.417769,0.00017176,2]
[378562076,1754913091275,-364.417769,0.00017176,2]
[378562077,1754913091285,-364.417769,0.00017176,2]
[378562078,1754913091294,-364.417769,0.00017176,2]
[378562079,1754913091304,-995.24,0.00017176,2]
[378562080,1754913091314,-995.24,0.00017176,2]
[378562081,1754913091326,-995.24,0.00017176,2]
[378562082,1754913091336,-995.24,0.00017176,2]
[378562083,1754913091345,-995.24,0.00017176,2]
[378562084,1754913091355,-995.29052035,0.00017176,2]
[378562085,1754913091366,-178.140989,0.00017176,2]
[378562086,1754913091375,-178.140989,0.00017176,2]
[378562087,1754913091385,-457.345272,0.00017176,2]
[378562088,1754913091394,-457.345272,0.00017176,2]
[378562089,1754913091404,-306.834118,0.00017176,2]
[378562090,1754913091414,-306.834118,0.00017176,2]
[378562091,1754913091423,-575.31,0.00017176,2]
[378562092,1754913091432,-575.31,0.00017176,2]
[378562093,1754913091442,-575.31,0.00017176,2]
[378562094,1754913091452,-575.31,0.00017176,2]
[378562095,1754913091462,-500.0,0.00017176,2]
[378562096,1754913091471,-3920.987,0.00017176,2]
[378562097,1754913091480,-4172.867181,0.00017176,2]
[378562098,1754913091490,-4172.867181,0.00017176,2]
[378562099,1754913091500,-2206.677674,0.00017176,2]
[378562100,1754913091510,-2206.677674,0.00017176,2]
[378562101,1754913091519,-360.809461,0.00017176,2]
[378562102,1754913091528,-360.809461,0.00017176,2]
[378562103,1754913091538,-249.372785,0.00017176,2]
[378562104,1754913091547,-249.372785,0.00017176,2]
[378562105,1754913091557,-249.372785,0.00017176,2]
[378562106,1754913091566,-249.372785,0.00017176,2]
[378562107,1754913091575,-732.835776,0.00017176,2]
[378562108,1754913091585,-732.835776,0.00017176,2]
[378562109,1754913091594,-667.36,0.00017176,2]
[378562110,1754913091603,-667.36,0.00017176,2]
[378562111,1754913091613,-667.36,0.00017176,2]
[378562112,1754913091622,-667.36,0.00017176,2]
[378562113,1754913091632,-667.36,0.00017176,2]
[378562114,1754913091642,-667.3614265,0.00017176,2]
[378562115,1754913091651,-598.53,0.00017176,2]
[378562116,1754913091661,-598.53,0.00017176,2]
[378562117,1754913091670,-598.53,0.00017176,2]
[378562118,1754913091680,-598.53,0.00017176,2]
[378562119,1754913091689,-169.184007,0.00017176,2]
[378562120,1754913091699,-169.184007,0.00017176,2]
[378562121,1754913091708,-277.024127,0.00017176,2]
[378562122,1754913091718,-277.024119,0.00017176,2]
[378562123,1754913091728,-671.9,0.00017176,2]
[378562124,1754913091738,-671.9,0.00017176,2]
[378562125,1754913091748,-671.9,0.00017176,2]
[378562126,1754913091757,-671.9,0.00017176,2]
[378562127,1754913091766,-671.9,0.00017176,2]
[378562128,1754913091776,-671.99213231,0.00017176,2]
[378562129,1754913091786,-722.059711,0.00017176,2]
[378562130,1754913091795,-722.059711,0.00017176,2]
[378562131,1754913091805,-3179.72,0.00017176,2]
[378562132,1754913091814,-3179.72,0.00017176,2]
[378562133,1754913091823,-3179.72,0.00017176,2]
[378562134,1754913091833,-3179.72,0.00017176,2]
[378562135,1754913091842,-3179.72,0.00017176,2]
[378562136,1754913091852,-3179.76729578,0.00017176,2]
[378562137,1754913091863,-10000.0,0.00017176,2]
[378562138,1754913091872,-10000.0,0.00017176,2]
[378562139,1754913091882,-158.92337,0.00017176,2]
[378562140,1754913091891,-158.92336,0.00017176,2]
[378562141,1754913091900,-150.0,0.00017177,2]
[378562142,1754913091910,-150.0,0.00017177,2]
[378562143,1754913091919,-500.0,0.00017177,2]
[378562144,1754913091928,-500.0,0.00017177,2]
[378562145,1754913091937,-150.0,0.00017177,2]
[378562146,1754913091954,-150.0,0.00017177,2]
[378562147,1754913091968,-150.0,0.00017177,2]
[378562148,1754913091978,-150.0,0.00017177,2]
[378562149,1754913091988,-500.0,0.00017177,2]
[378562150,1754913091998,-150.0,0.00017177,2]
[378562151,1754913092008,-150.0,0.00017177,2]
[378562152,1754913092018,-500.0,0.00017177,2]
[378562153,1754913092028,-500.0,0.00017177,2]
[378562154,1754913092037,-500.0,0.00017177,2]
[378562155,1754913092048,-500.0,0.00017177,2]
[378562156,1754913092058,-150.0,0.00017177,2]
[378562157,1754913092068,-500.0,0.00017177,2]
[378562158,1754913092078,-500.0,0.00017177,2]
[378562159,1754913092088,-539.803399,0.00017177,2]
[378562160,1754913092098,-539.803399,0.00017177,2]
[378562161,1754913092108,-539.803399,0.00017177,2]
[378562162,1754913092119,-539.803399,0.00017177,2]
[378562163,1754913092129,-792.997131,0.00017177,2]
[378562164,1754913092139,-792.997131,0.00017177,2]
[378562165,1754913092149,-792.997131,0.00017177,2]
[378562166,1754913092159,-792.997131,0.00017177,2]
[378562167,1754913092169,-151.0,0.00017177,2]
[378562168,1754913092178,-162.511509,0.00017177,2]
[378562169,1754913092188,-162.511509,0.00017177,2]
[378562170,1754913092198,-162.511509,0.00017177,2]
[378562171,1754913092207,-162.511509,0.00017177,2]
[378562172,1754913092217,-151.0,0.00017177,2]
[378562173,1754913092227,-151.0,0.00017177,2]
[378562174,1754913092238,-151.0,0.00017177,2]
[378562175,1754913092251,-151.0,0.00017177,2]
[378562176,1754913092261,-151.0,0.00017177,2]
[378562177,1754913092271,-2677.925587,0.00017177,2]
[378562178,1754913092281,-2677.925587,0.00017177,2]
[378562179,1754913092291,-2677.925587,0.00017177,2]
[378562180,1754913092302,-2677.925587,0.00017177,2]
[378562181,1754913092312,-900.545503,0.00017177,2]
[378562182,1754913092321,-900.545503,0.00017177,2]
[378562183,1754913092331,-1183.01629,0.00017177,2]
[378562184,1754913092340,-1183.01629,0.00017177,2]
[378562185,1754913092350,-353.932149,0.00017177,2]
[378562186,1754913092360,-353.932149,0.00017177,2]
[378562187,1754913092370,-353.932149,0.00017177,2]
[378562188,1754913092380,-353.932149,0.00017177,2]
[378562189,1754913092389,-20493.1044642,0.00017177,2]
[378562190,1754913092399,-1037.771539,0.00017177,2]
[378562191,1754913092409,-1037.771539,0.00017177,2]
[378562192,1754913092419,-1037.771539,0.00017177,2]
[378562193,1754913092428,-1037.771539,0.00017177,2]
[378562194,1754913092438,-1037.771539,0.00017177,2]
[378562195,1754913092447,-1037.771539,0.00017177,2]
[378562196,1754913092457,-3528.785897,0.00017177,2]
[378562197,1754913092466,-3528.785897,0.00017177,2]
[378562198,1754913092476,-817.090114,0.00017177,2]
[378562199,1754913092485,-817.090114,0.00017177,2]
[378562200,1754913092495,-1666.659554,0.00017177,2]
[378562201,1754913092505,-1666.659554,0.00017177,2]
[378562202,1754913092514,-1666.659554,0.00017177,2]
[378562203,1754913092524,-1666.659554,0.00017177,2]
[378562204,1754913092534,-1391.161039,0.00017177,2]
[378562205,1754913092543,-1391.161039,0.00017177,2]
[378562206,1754913092552,-1391.161039,0.00017177,2]
[378562207,1754913092562,-1391.161039,0.00017177,2]
[378562208,1754913092572,-1391.161039,0.00017177,2]
[378562209,1754913092581,-1391.161039,0.00017177,2]
[378562210,1754913092591,-946.509576,0.00017177,2]
[378562211,1754913092601,-946.509576,0.00017177,2]
[378562212,1754913092612,-946.509576,0.00017177,2]
[378562213,1754913092622,-946.509576,0.00017177,2]
[378562214,1754913092632,-2498.829249,0.00017177,2]
[378562215,1754913092642,-2498.829249,0.00017177,2]
[378562216,1754913092651,-2979.342315,0.00017177,2]
[378562217,1754913092662,-2979.342315,0.00017177,2]
[378562218,1754913092671,-2979.342315,0.00017177,2]
[378562219,1754913092682,-151.0,0.00017177,2]
[378562220,1754913092692,-151.0,0.00017177,2]
[378562221,1754913092702,-1251.129203,0.00017177,2]
[378562222,1754913092712,-1251.129201,0.00017177,2]
[378562223,1754913092722,-586.841379,0.00017177,2]
[378562224,1754913092731,-586.841379,0.00017177,2]
[378562225,1754913092740,-1646.262048,0.00017177,2]
[378562226,1754913092750,-1646.262048,0.00017177,2]
[378562227,1754913092759,-10000.0,0.00017177,2]
[378562228,1754913092769,-10000.0,0.00017177,2]
[378562229,1754913092779,-2402.588643,0.00017177,2]
[378562230,1754913092789,-10000.0,0.00017177,2]
[378562231,1754913092798,-151.0,0.00017177,2]
[378562232,1754913092808,-2399.138981,0.00017177,2]
[378562233,1754913092817,-2402.588643,0.00017177,2]
[378562234,1754913092827,-2399.138981,0.00017177,2]
[378562235,1754913092836,-2399.138981,0.00017177,2]
[378562236,1754913092846,-2399.138981,0.00017177,2]
[378562237,1754913092855,-2399.138981,0.00017177,2]
[378562238,1754913092867,-2399.138981,0.00017177,2]
[378562239,1754913092877,-379.164322,0.00017177,2]
[378562240,1754913092887,-379.164318,0.00017177,2]
[378562241,1754913092896,-691.460372,0.00017177,2]
[378562242,1754913092906,-691.460372,0.00017177,2]
[378562243,1754913092917,-691.460372,0.00017177,2]
[378562244,1754913092927,-691.460372,0.00017177,2]
[378562245,1754913092936,-691.460372,0.00017177,2]
[378562246,1754913092945,-691.460372,0.00017177,2]
[378562247,1754913092955,-338.838444,0.00017177,2]
[378562248,1754913092964,-338.838444,0.00017177,2]
[378562249,1754913092974,-338.838444,0.00017177,2]
[378562250,1754913092983,-338.838444,0.00017177,2]
[378562251,1754913092993,-338.838444,0.00017177,2]
[378562253,1754913093002,-338.838444,0.00017177,2]
[378562254,1754913093012,-914.903255,0.00017177,2]
[378562255,1754913093022,-914.903252,0.00017177,2]
[378562256,1754913093031,-419.089911,0.00017177,2]
[378562257,1754913093041,-419.089911,0.00017177,2]
[378562258,1754913093052,-1443.502461,0.00017177,2]
[378562259,1754913093062,-1443.502461,0.00017177,2]
[378562260,1754913093072,-1443.502461,0.00017177,2]
[378562261,1754913093082,-151.0,0.00017177,2]
[378562262,1754913093092,-1443.502461,0.00017177,2]
[378562263,1754913093102,-158.350797,0.00017177,2]
[378562264,1754913093113,-151.0,0.00017177,2]
[378562265,1754913093123,-172.245218,0.00017177,2]
[378562266,1754913093134,-172.245218,0.00017177,2]
[378562267,1754913093144,-172.245218,0.00017177,2]
[378562268,1754913093155,-172.245218,0.00017177,2]
[378562269,1754913093165,-172.245218,0.00017177,2]
[378562270,1754913093176,-172.245218,0.00017177,2]
[378562271,1754913093186,-7822.156241,0.00017177,2]
[378562272,1754913093195,-7822.156232,0.00017177,2]
[378562273,1754913093205,-162.582376,0.00017177,2]
[378562274,1754913093216,-151.0,0.00017177,2]
[378562275,1754913093225,-162.582376,0.00017177,2]
[378562276,1754913093236,-364.417769,0.00017177,2]
[378562277,1754913093250,-364.417771,0.00017177,2]
[378562278,1754913093261,-178.140989,0.00017177,2]
[378562279,1754913093271,-178.140989,0.00017177,2]
[378562280,1754913093282,-457.345272,0.00017177,2]
[378562281,1754913093292,-457.345272,0.00017177,2]
[378562282,1754913093302,-306.834118,0.00017177,2]
[378562283,1754913093312,-306.834118,0.00017177,2]
[378562284,1754913093323,-306.834118,0.00017177,2]
[378562285,1754913093333,-306.834118,0.00017177,2]
[378562286,1754913093344,-306.834118,0.00017177,2]
[378562287,1754913093354,-306.834118,0.00017177,2]
[378562288,1754913093490,-151.0,0.00017177,2]
[378562289,1754913093500,-4172.867181,0.00017177,2]
[378562290,1754913093510,-4172.867181,0.00017177,2]
[378562291,1754913093519,-2206.677674,0.00017177,2]
[378562292,1754913093528,-2206.677674,0.00017177,2]
[378562293,1754913093538,-360.809461,0.00017177,2]
[378562294,1754913093547,-360.809461,0.00017177,2]
[378562295,1754913093557,-249.372785,0.00017177,2]
[378562296,1754913093567,-249.372777,0.00017177,2]
[378562297,1754913093576,-732.835776,0.00017177,2]
[378562298,1754913093586,-732.835776,0.00017177,2]
[378562299,1754913093596,-287.257386,0.00017177,2]
[378562300,1754913093605,-287.257386,0.00017177,2]
[378562301,1754913093616,-345.624,0.00017177,2]
[378562302,1754913093627,-345.624,0.00017177,2]
[378562303,1754913093636,-279.810865,0.00017177,2]
[378562304,1754913093646,-279.810865,0.00017177,2]
[378562305,1754913093655,-169.184007,0.00017177,2]
[378562306,1754913093665,-169.184007,0.00017177,2]
[378562307,1754913093674,-151.0,0.00017177,2]
[378562308,1754913093684,-722.059711,0.00017177,2]
[378562309,1754913093693,-722.059711,0.00017177,2]
[378562310,1754913093703,-5888.0,0.00017211,2]
[378562311,1754913093712,-1000.0,0.00017221,2]
[378562312,1754913093722,-500.0,0.00017221,2]
[378562313,1754913093731,-503.17489145,0.00017221,2]
[378562314,1754913093740,-1000.0,0.00017221,2]
[378562315,1754913093750,-5888.0,0.00017224,2]
[378562316,1754913093760,-150.0,0.00017238,2]
[378562317,1754913093770,-5888.0,0.00017255,2]
[378562318,1754913093780,-5888.0,0.00017263,2]
[378562319,1754913093790,-338.0,0.0001728,2]
[378562320,1754913093800,-150.0,0.00017286,2]
[378562321,1754913093810,-150.0,0.00017286,2]
[378562322,1754913093819,-150.0,0.00017286,2]
[378562323,1754913093828,-150.0,0.00017286,2]
[378562324,1754913093838,-158.89,0.00017292,2]
[378562325,1754913093847,-162.89464287,0.00017316,2]
[378562326,1754913093857,-411.4133562,0.00017317,2]
[378562327,1754913093868,-5888.0,0.00017339,2]
[378562328,1754913093878,-150.0,0.00017342,2]
[378562329,1754913093887,-331.44995402,0.00017348,2]
[378562330,1754913093896,-320.96,0.0001737,2]
[378562331,1754913093906,-173.27,0.0001737,2]
[378562332,1754913093916,-359.87,0.0001737,2]
[378562333,1754913093926,-2389.96,0.0001737,2]
[378562334,1754913093936,-150.0,0.00017381,2]
[378562335,1754913093946,-151.0,0.00017391,2]
[378562336,1754913093955,-5888.0,0.00017396,2]
[378562337,1754913093965,-151.0,0.00017399,2]
[378562338,1754913093975,-151.0,0.00017403,2]
[378562339,1754913093984,-217.39,0.00017406,2]
[378562340,1754913093994,-151.0,0.00017407,2]
[378562341,1754913094003,-150.0,0.00017409,2]
[378562342,1754913094012,-150.0,0.00017409,2]
[378562343,1754913094021,-151.0,0.0001741,2]
[378562344,1754913094030,-156.022204,0.0001741,2]
[378562345,1754913094040,-223.997593,0.0001741,2]
[378562346,1754913094050,-223.997593,0.0001741,2]
[378562347,1754913094060,-309.853147,0.0001741,2]
[378562348,1754913094070,-309.853147,0.0001741,2]
[378562349,1754913094080,-1271.592475,0.0001741,2]
[378562350,1754913094090,-1271.592475,0.0001741,2]
[378562351,1754913094100,-500.0,0.00017419,2]
[378562352,1754913094109,-151.0,0.0001742,2]
[378562353,1754913094122,-152.328847,0.0001742,2]
[378562354,1754913094132,-353.915417,0.0001742,2]
[378562355,1754913094142,-353.915417,0.0001742,2]
[378562356,1754913094151,-151.0,0.0001742,2]
[378562357,1754913094161,-151.0,0.0001742,2]
[378562358,1754913094171,-200.0,0.0001742,5]
[378562359,1754913094181,-200.0,0.0001742,5]
[378562360,1754913094190,-200.0,0.0001742,5]
[378562361,1754913094199,-241.367228,0.0001742,5]
[378562362,1754913094208,-539.803399,0.0001742,2]
[378562363,1754913094217,-539.803399,0.0001742,2]
[378562364,1754913094227,-792.997131,0.0001742,2]
[378562365,1754913094236,-792.997131,0.0001742,2]
[378562366,1754913094249,-151.0,0.0001742,2]
[378562367,1754913094259,-162.511509,0.0001742,2]
[378562368,1754913094268,-162.511509,0.0001742,2]
[378562369,1754913094278,-151.0,0.0001742,2]
[378562370,1754913094290,-178.269638,0.0001742,2]
[378562371,1754913094299,-151.0,0.0001742,2]
[378562372,1754913094309,-2677.925587,0.0001742,2]
[378562373,1754913094320,-2677.925587,0.0001742,2]
[378562374,1754913094330,-900.545503,0.0001742,2]
[378562375,1754913094340,-900.545501,0.0001742,2]
[378562376,1754913094349,-1183.01629,0.0001742,2]
[378562377,1754913094357,-1183.016287,0.0001742,2]
[378562378,1754913094367,-353.932149,0.0001742,2]
[378562379,1754913094376,-353.932149,0.0001742,2]
[378562380,1754913094385,-3528.785897,0.0001742,2]
[378562381,1754913094394,-3528.785901,0.0001742,2]
[378562382,1754913094403,-817.090114,0.0001742,2]
[378562383,1754913094412,-817.090112,0.0001742,2]
[378562384,1754913094421,-1666.659554,0.0001742,2]
[378562385,1754913094430,-1666.659554,0.0001742,2]
[378562386,1754913094439,-586.841379,0.0001742,2]
[378562387,1754913094448,-586.841375,0.0001742,2]
[378562388,1754913094457,-1646.262048,0.0001742,2]
[378562389,1754913094466,-1646.262045,0.0001742,2]
[378562390,1754913094476,-151.0,0.0001742,2]
[378562391,1754913094485,-1443.502461,0.0001742,2]
[378562392,1754913094494,-1443.502461,0.0001742,2]
[378562393,1754913094503,-345.624,0.0001742,2]
[378562394,1754913094512,-345.624,0.0001742,2]
[378562395,1754913094522,-1000.0,0.00017421,2]
[378562396,1754913094531,-631.63242159,0.00017421,2]
[378562397,1754913094540,-1000.0,0.00017421,2]
[378562398,1754913094551,-1000.0,0.00017421,2]
[378562399,1754913094560,-1013.74417535,0.00017421,2]
[378562400,1754913094569,-1000.0,0.00017421,2]
[378562401,1754913094578,-498.5988,0.00017421,2]
[378562402,1754913094588,-1000.0,0.00017421,2]
[378562403,1754913094597,-1088.29341972,0.00017421,2]
[378562404,1754913094606,-1000.0,0.00017421,2]
[378562405,1754913094616,-1000.0,0.00017421,2]
[378562406,1754913094624,-1000.0,0.00017421,2]
[378562407,1754913094634,-1000.0,0.00017421,2]
[378562408,1754913094643,-501.64333405,0.00017421,2]
[378562409,1754913094652,-1000.0,0.00017421,2]
[378562410,1754913094661,-1000.0,0.00017421,2]
[378562411,1754913094671,-158.91,0.00017423,2]
[378562412,1754913094681,-600.0,0.00017423,2]
[378562413,1754913094691,-600.0,0.00017423,2]
[378562414,1754913094700,-600.0,0.00017423,2]
[378562415,1754913094709,-600.0,0.00017423,2]
[378562416,1754913094720,-600.0,0.00017423,2]
[378562417,1754913094729,-536.52,0.00017423,2]
[378562418,1754913094739,-553.84728294,0.00017432,2]
[378562419,1754913094747,-150.0,0.0001744,2]
[378562420,1754913094757,-400.0,0.00017444,2]
[378562421,1754913094766,-400.0,0.00017444,2]
[378562422,1754913094775,-914.13,0.00017444,2]
[378562423,1754913094784,-1959.51,0.00017444,2]
[378562424,1754913094793,-563.57,0.00017444,2]
[378562425,1754913094802,-1025.43,0.00017444,2]
[378562426,1754913094812,-400.0,0.00017445,2]
[378562427,1754913094821,-486.72,0.00017445,2]
[378562428,1754913094830,-400.0,0.00017445,2]
[378562429,1754913094839,-400.0,0.00017445,2]
[378562430,1754913094849,-400.0,0.00017445,2]
[378562431,1754913094858,-400.0,0.00017445,2]
[378562432,1754913094868,-400.0,0.00017445,2]
[378562433,1754913094878,-400.0,0.00017445,2]
[378562434,1754913094887,-400.0,0.00017445,2]
[378562435,1754913094897,-400.0,0.00017445,2]
[378562436,1754913094906,-885.25,0.00017445,2]
[378562437,1754913094915,-400.0,0.00017445,2]
[378562438,1754913094924,-782.6,0.00017445,2]
[378562439,1754913094934,-400.0,0.00017445,2]
[378562440,1754913094943,-400.0,0.00017445,2]
[378562441,1754913094951,-539.02,0.00017445,2]